bitfinex/quotes_BTCUSD_20250221
["timestamp","ask_amount","ask_price","bid_price","bid_amount"]
[1740167530990,0.01454085,95786.0,95768.0,0.00013012]
[1740167531230,0.01454085,95786.0,95769.0,0.001701]
[1740167531465,0.01454085,95783.0,95769.0,0.001701]
[1740167531697,0.10264569,95793.0,95769.0,0.001701]
[1740167531912,0.04548875,95795.0,95769.0,0.001701]
[1740167532175,0.0649,95827.0,95776.0,0.15]
[1740167532417,1.02472916,95839.0,95776.0,0.15]
[1740167532418,0.02,95832.0,95782.0,0.15]
[1740167532675,0.00786873,95836.0,95796.0,0.10264569]
[1740167532935,0.00786873,95836.0,95813.0,0.156553]
[1740167533185,0.00786873,95836.0,95797.0,0.208774]
[1740167533186,0.00786873,95836.0,95796.0,0.10264569]
[1740167533436,0.15,95840.0,95815.0,0.15655]
[1740167533647,0.0010466,95849.0,95818.0,0.156546]
[1740167534059,0.00195472,95849.0,95819.0,0.10264569]
[1740167534258,0.156497,95848.0,95821.0,0.156541]
[1740167534466,0.156497,95848.0,95822.0,0.10264569]
[1740167534762,0.156503,95845.0,95822.0,0.10264569]
[1740167534966,0.00208484,95849.0,95822.0,0.10264569]
[1740167535179,0.15,95845.0,95822.0,0.10264569]
[1740167535405,0.00090812,95844.0,95811.0,0.156558]
[1740167535616,0.01454085,95830.0,95812.0,0.10264569]
[1740167535819,0.01454085,95830.0,95813.0,0.00125234]
[1740167536084,0.00790325,95848.0,95813.0,0.00125234]
[1740167536085,0.01454085,95848.0,95829.0,0.156527]
[1740167536288,0.01454085,95848.0,95816.0,0.00125225]
[1740167536605,0.00117672,95849.0,95815.0,0.0814]
[1740167536606,0.00117672,95849.0,95830.0,0.10264569]
[1740167536813,0.00117672,95849.0,95847.0,0.156498]
[1740167537015,0.00117672,95849.0,95848.0,0.10264569]
[1740167537373,0.00117672,95849.0,95816.0,0.15]
[1740167537621,0.00117672,95849.0,95827.0,0.208709]
[1740167537837,0.00117672,95849.0,95844.0,0.156503]
[1740167538093,0.00117672,95849.0,95816.0,0.15]
[1740167538262,0.00117672,95849.0,95822.0,0.10264569]
[1740167538605,0.01544897,95848.0,95823.0,0.208718]
[1740167538805,0.01454085,95846.0,95824.0,0.10264569]
[1740167539009,0.01454085,95844.0,95824.0,0.10264569]
[1740167539363,0.01454085,95845.0,95824.0,0.10264569]
[1740167539565,0.00459617,95844.0,95824.0,0.10264569]
[1740167539763,0.01913702,95844.0,95824.0,0.10264569]
[1740167539966,0.208683,95840.0,95804.0,0.1246]
[1740167540194,0.01454085,95830.0,95805.0,0.10264569]
[1740167540554,0.10264569,95846.0,95815.0,0.156551]
[1740167540754,0.01913702,95845.0,95815.0,0.10264569]
[1740167541041,0.01454085,95840.0,95815.0,0.10264569]
[1740167541539,0.00459617,95839.0,95815.0,0.10264569]
[1740167541785,0.01454085,95838.0,95815.0,0.10264569]
[1740167542012,0.01454085,95838.0,95825.0,0.156534]
[1740167542238,0.01454085,95848.0,95823.0,0.156537]
[1740167542477,0.01454085,95848.0,95824.0,0.10264569]
[1740167542649,0.01454085,95846.0,95824.0,0.10264569]
[1740167542795,0.01454085,95844.0,95805.0,0.02]
[1740167543012,0.01454085,95841.0,95806.0,0.10264569]
[1740167543218,0.01454085,95837.0,95808.0,0.156561]
[1740167543434,0.01544897,95837.0,95809.0,0.10264569]
[1740167543642,0.01454085,95826.0,95805.0,0.02]
[1740167543933,0.01454085,95835.0,95805.0,0.02]
[1740167544297,0.01454085,95833.0,95805.0,0.02]
[1740167544458,0.17106285,95833.0,95805.0,0.176567]
[1740167544638,0.01454085,95833.0,95812.0,0.156556]
[1740167544839,0.01454085,95833.0,95813.0,0.10264569]
[1740167545044,0.01454085,95839.0,95813.0,0.10264569]
[1740167545266,0.01454085,95831.0,95813.0,0.10264569]
[1740167545467,0.01454085,95831.0,95814.0,0.156552]
[1740167545676,0.00779656,95847.0,95805.0,0.015]
[1740167545677,0.00117672,95849.0,95815.0,0.10264569]
[1740167545897,0.00117672,95849.0,95829.0,0.156528]
[1740167545898,0.00464368,95830.0,95829.0,0.156528]
[1740167546095,0.00117672,95849.0,95829.0,0.156528]
[1740167546096,0.00117672,95849.0,95829.0,0.10264569]
[1740167546296,0.00117672,95849.0,95833.0,0.156522]
[1740167546505,0.00465038,95848.0,95834.0,0.10264569]
[1740167546703,0.00465038,95848.0,95834.0,0.25916469]
[1740167546944,0.00117672,95849.0,95834.0,0.10264569]
[1740167547495,0.00117672,95849.0,95835.0,0.208692]
[1740167547695,0.01454085,95848.0,95836.0,0.10264569]
[1740167547911,0.01454085,95848.0,95840.0,0.156509]
[1740167548117,0.01454085,95848.0,95841.0,0.10264569]
[1740167548866,0.01454085,95848.0,95829.0,0.208704]
[1740167549107,0.01454085,95848.0,95830.0,0.10264569]
[1740167549322,0.01454085,95848.0,95806.0,0.3214]
[1740167549323,0.01454085,95846.0,95806.0,0.3214]
[1740167549530,0.11718654,95845.0,95807.0,0.10264569]
[1740167549743,0.0192188,95845.0,95807.0,0.10264569]
[1740167549969,0.00467795,95845.0,95810.0,0.10264569]
[1740167550172,0.00117672,95849.0,95817.0,0.10264569]
[1740167550344,0.00117672,95849.0,95834.0,0.15652]
[1740167550586,0.01454085,95848.0,95836.0,0.156517]
[1740167550795,0.01454085,95848.0,95837.0,0.10264569]
[1740167551940,0.01454085,95848.0,95838.0,0.156514]
[1740167552147,0.01454085,95848.0,95839.0,0.10264569]
[1740167552365,0.01454085,95848.0,95841.0,0.156507]
[1740167552685,0.01454085,95848.0,95842.0,0.25915269]
[1740167553015,0.01454085,95848.0,95842.0,0.10264569]
[1740167554683,0.01454085,95848.0,95833.0,0.076]
[1740167554880,0.01454085,95848.0,95787.0,0.313192]
[1740167554881,0.01454085,95848.0,95834.0,0.10264569]
[1740167555039,0.01454085,95848.0,95821.0,0.3985]
[1740167555242,0.01454085,95848.0,95822.0,0.10264569]
[1740167555447,0.01539155,95848.0,95824.0,0.156536]
[1740167555644,0.01539155,95848.0,95821.0,0.3985]
[1740167555645,0.01454085,95846.0,95825.0,0.10264569]
[1740167556106,0.01454085,95847.0,95825.0,0.10264569]
[1740167556328,0.01454085,95847.0,95825.0,0.25918069]
[1740167556535,0.01454085,95847.0,95825.0,0.10264569]
[1740167556739,0.01454085,95847.0,95826.0,0.156532]
[1740167557041,0.01454085,95847.0,95827.0,0.10264569]
[1740167557247,0.01539155,95848.0,95827.0,0.10264569]
[1740167557450,0.01454085,95847.0,95828.0,0.156528]
[1740167557654,0.01454085,95847.0,95829.0,0.10264569]
[1740167558418,0.01454085,95847.0,95829.0,0.25917269]
[1740167558617,0.01454085,95847.0,95829.0,0.10264569]
[1740167559442,0.00090812,95846.0,95829.0,0.10264569]
[1740167559643,0.01454085,95847.0,95829.0,0.10264569]
[1740167561623,0.00090812,95846.0,95821.0,0.3214]
[1740167561934,0.00090812,95846.0,95813.0,0.208739]
[1740167561935,0.01454085,95847.0,95822.0,0.25918569]
[1740167562135,0.01454085,95847.0,95824.0,0.156536]
[1740167562343,0.01454085,95847.0,95825.0,0.10264569]
[1740167562743,0.01454085,95847.0,95825.0,0.25918069]
[1740167562969,0.00466485,95846.0,95825.0,0.10264569]
[1740167563128,0.01454085,95847.0,95825.0,0.10264569]
[1740167563568,0.01454085,95840.0,95810.0,0.0766]
[1740167563792,0.01454085,95838.0,95811.0,0.10264569]
[1740167563983,0.01454085,95838.0,95812.0,0.156556]
[1740167564259,0.01454085,95843.0,95813.0,0.10264569]
[1740167564471,0.01454085,95841.0,95813.0,0.10264569]
[1740167564671,0.01454085,95839.0,95805.0,0.015]
[1740167564850,0.01454085,95836.0,95806.0,0.10264569]
[1740167565022,0.01454085,95834.0,95806.0,0.10264569]
[1740167565229,0.01454085,95829.0,95805.0,0.015]
[1740167565427,0.01454085,95827.0,95805.0,0.015]
[1740167565671,0.00090812,95827.0,95805.0,0.015]
[1740167565797,0.01454085,95825.0,95805.0,0.015]
[1740167565993,0.156544,95820.0,95805.0,0.015]
[1740167566201,0.01544897,95823.0,95805.0,0.015]
[1740167566406,0.01454085,95821.0,95805.0,0.015]
[1740167566612,0.01454085,95819.0,95805.0,0.015]
[1740167566807,0.01454085,95817.0,95805.0,0.015]
[1740167567141,0.01454085,95815.0,95805.0,0.015]
[1740167567522,0.01454085,95813.0,95805.0,0.015]
[1740167568082,0.01454085,95811.0,95805.0,0.015]
[1740167568683,0.01454085,95809.0,95805.0,0.015]
[1740167569094,0.01454085,95811.0,95805.0,0.015]
[1740167569264,0.01454085,95807.0,95805.0,0.015]
[1740167569823,0.0192057,95806.0,95805.0,0.015]
[1740167570977,0.00466485,95806.0,95805.0,0.27421369]
[1740167571182,0.00466485,95806.0,95805.0,0.72741369]
[1740167571460,0.09098625,95832.0,95818.0,0.156546]
[1740167571673,0.09098625,95832.0,95819.0,0.10264569]
[1740167571907,0.09098625,95832.0,95820.0,0.00125218]
[1740167572131,0.09098625,95832.0,95823.0,0.156537]
[1740167572340,0.09098625,95832.0,95824.0,0.10264569]
[1740167573300,0.01454085,95831.0,95824.0,0.10264569]
[1740167574268,0.01454085,95847.0,95824.0,0.10264569]
[1740167574526,0.01454085,95847.0,95807.0,0.208752]
[1740167574764,0.01454085,95845.0,95808.0,0.10264569]
[1740167574997,0.01454085,95843.0,95808.0,0.10264569]
[1740167575223,0.01454085,95838.0,95808.0,0.10264569]
[1740167575455,0.11718654,95838.0,95808.0,0.10264569]
[1740167575699,0.10264569,95838.0,95808.0,0.10264569]
[1740167575900,0.01454085,95837.0,95808.0,0.10264569]
[1740167576037,0.01544897,95837.0,95808.0,0.10264569]
[1740167576496,0.01454085,95837.0,95808.0,0.10264569]
[1740167577100,0.01454085,95835.0,95808.0,0.10264569]
[1740167577307,0.10264569,95838.0,95808.0,0.10264569]
[1740167577518,0.156516,95837.0,95808.0,0.10264569]
[1740167577718,0.10264569,95836.0,95780.0,0.35881]
[1740167577928,0.156526,95831.0,95795.0,0.156584]
[1740167578587,0.15,95835.0,95790.0,0.208789]
[1740167578782,0.15,95833.0,95790.0,0.208789]
[1740167579057,0.10264569,95832.0,95792.0,0.208783]
[1740167579269,0.15,95831.0,95805.0,0.015]
[1740167579468,0.01454085,95827.0,95805.0,0.015]
[1740167579648,0.11718654,95827.0,95805.0,0.015]
[1740167579848,0.01454085,95822.0,95805.0,0.015]
[1740167581404,0.208726,95819.0,95805.0,0.015]
[1740167581632,0.16454085,95820.0,95805.0,0.015]
[1740167581633,0.01454085,95807.0,95805.0,0.015]
[1740167581954,0.01454085,95813.0,95805.0,0.015]
[1740167582284,0.01454085,95812.0,95805.0,0.015]
[1740167582487,0.11839051,95813.0,95805.0,0.015]
[1740167582488,0.32110685,95806.0,95805.0,0.015]
[1740167582700,0.42375254,95806.0,95805.0,0.015]
[1740167583887,0.44375254,95806.0,95805.0,0.015]
[1740167585330,0.76425254,95806.0,95805.0,0.015]
[1740167585566,0.3205,95806.0,95805.0,0.015]
[1740167586684,0.33504085,95806.0,95805.0,0.015]
[1740167587915,0.43768654,95806.0,95805.0,0.015]
[1740167589152,0.01052,95826.0,95805.0,0.015]
[1740167589153,0.09157677,95818.0,95805.0,0.015]
[1740167589363,0.09157677,95818.0,95816.0,0.156549]
[1740167589573,0.09157677,95818.0,95817.0,0.10264569]
[1740167589775,0.09157677,95818.0,95817.0,0.18209799]
[1740167589982,0.09157677,95818.0,95817.0,0.55114569]
[1740167590188,0.09157677,95818.0,95817.0,0.70114569]
[1740167591033,0.09157677,95818.0,95817.0,0.55114569]
[1740167591455,0.0008507,95838.0,95837.0,0.156515]
[1740167591675,0.00098079,95838.0,95837.0,0.10264569]
[1740167594252,0.00098079,95838.0,95837.0,0.23124569]
[1740167594685,0.00098079,95838.0,95837.0,0.38124569]
[1740167594894,0.00098079,95838.0,95837.0,0.70264569]
[1740167598532,0.00098079,95838.0,95837.0,0.55264569]
[1740167599157,0.00098079,95838.0,95837.0,0.15094569]
[1740167599433,0.01454085,95837.0,95819.0,0.0489]
[1740167599634,0.01454085,95837.0,95820.0,0.10264569]
[1740167599848,0.01454085,95837.0,95813.0,0.7]
[1740167600018,0.01454085,95837.0,95814.0,0.10264569]
[1740167600454,0.00098079,95838.0,95835.0,0.156517]
[1740167600660,0.00098079,95838.0,95837.0,0.156515]
[1740167600827,0.00098079,95838.0,95837.0,0.25916069]
[1740167602289,0.00098079,95838.0,95837.0,0.10264569]
[1740167604376,0.00098079,95838.0,95837.0,0.10389762]
[1740167604590,0.00098079,95838.0,95837.0,0.10264569]
[1740167604795,0.0010466,95849.0,95837.0,0.10264569]
[1740167604999,0.00924744,95875.0,95838.0,0.10264569]
[1740167605210,0.00043355,95870.0,95838.0,0.10264569]
[1740167605894,0.00043355,95870.0,95839.0,0.208683]
[1740167606139,0.00043355,95870.0,95840.0,0.10264569]
[1740167606395,0.00043355,95870.0,95844.0,0.156503]
[1740167606598,0.00043355,95870.0,95845.0,0.25914769]
[1740167606730,0.00043355,95870.0,95846.0,0.1565]
[1740167606731,0.0789,95869.0,95846.0,0.1565]
[1740167606953,0.01454085,95868.0,95847.0,0.10264569]
[1740167607167,0.00043355,95870.0,95847.0,0.10264569]
[1740167607372,0.00043355,95870.0,95851.0,0.1277]
[1740167607576,0.00043355,95870.0,95853.0,0.156489]
[1740167607777,0.00043355,95870.0,95855.0,0.208648]
[1740167607992,0.00043355,95870.0,95856.0,0.10264569]
[1740167608588,0.00043355,95870.0,95841.0,0.0777]
[1740167608789,0.00043355,95870.0,95843.0,0.156505]
[1740167608998,0.00043355,95870.0,95844.0,0.25914869]
[1740167609206,0.00043355,95870.0,95837.0,0.0452]
[1740167609421,0.00043355,95870.0,95824.0,0.0787]
[1740167609422,0.156479,95860.0,95824.0,0.0787]
[1740167609624,0.01454085,95867.0,95835.0,0.10264569]
[1740167609823,0.00043355,95870.0,95836.0,0.00125212]
[1740167610025,0.15689555,95870.0,95837.0,0.10264569]
[1740167610229,0.16454085,95869.0,95837.0,0.10264569]
[1740167610846,0.16454085,95869.0,95847.0,0.208664]
[1740167611052,0.16454085,95869.0,95848.0,0.10264569]
[1740167611444,0.00043355,95870.0,95848.0,0.10264569]
[1740167612122,0.08346505,95869.0,95825.0,0.208713]
[1740167612329,0.08346505,95859.0,95826.0,0.10264569]
[1740167612568,0.01454085,95856.0,95826.0,0.10264569]
[1740167612977,0.01454085,95854.0,95821.0,0.0452]
[1740167613151,0.01454085,95851.0,95822.0,0.10264569]
[1740167613352,0.01454085,95848.0,95822.0,0.10264569]
[1740167613763,0.01454085,95846.0,95811.0,0.156557]
[1740167613984,0.01454085,95846.0,95807.0,0.3214]
[1740167614191,0.01454085,95846.0,95810.0,0.208744]
[1740167614570,0.01454085,95846.0,95807.0,0.3214]
[1740167614770,0.01454085,95846.0,95812.0,0.156556]
[1740167615226,0.01454085,95846.0,95814.0,0.156552]
[1740167615426,0.01454085,95846.0,95815.0,0.208734]
[1740167615631,0.01454085,95846.0,95815.0,0.15655]
[1740167615978,0.01454085,95846.0,95813.0,0.156554]
[1740167616433,0.01454085,95846.0,95809.0,0.208747]
[1740167616757,0.01454085,95846.0,95813.0,0.208739]
[1740167616993,0.01454085,95846.0,95809.0,0.208747]
[1740167617201,0.01454085,95846.0,95822.0,0.0017002]
[1740167617337,0.15,95853.0,95823.0,0.10264569]
[1740167617538,0.15,95851.0,95823.0,0.10264569]
[1740167617748,0.01454085,95848.0,95823.0,0.10264569]
[1740167617955,0.01454085,95850.0,95823.0,0.10264569]
[1740167619246,0.01454085,95850.0,95824.0,0.156535]
[1740167619592,0.01454085,95850.0,95823.0,0.10264569]
[1740167619769,0.01454085,95850.0,95823.0,0.25918369]
[1740167619967,0.01454085,95850.0,95826.0,0.156533]
[1740167620170,0.3205,95856.0,95822.0,0.0017002]
[1740167620171,0.15,95855.0,95835.0,0.156518]
[1740167620350,0.15,95855.0,95827.0,0.10264569]
[1740167620549,0.01454085,95854.0,95828.0,0.208707]
[1740167620769,0.01454085,95854.0,95829.0,0.25917369]
[1740167620954,0.01454085,95854.0,95831.0,0.156525]
[1740167621323,0.01454085,95855.0,95830.0,0.1308]
[1740167622049,0.01454085,95855.0,95830.0,0.0493]
[1740167622252,0.16454085,95853.0,95822.0,0.0017002]
[1740167622476,0.01454085,95852.0,95823.0,0.10264569]
[1740167623149,0.01454085,95852.0,95823.0,0.25918369]
[1740167623354,0.01454085,95852.0,95823.0,0.10264569]
[1740167623937,0.10264569,95853.0,95823.0,0.10264569]
[1740167624071,0.01454085,95852.0,95823.0,0.10264569]
[1740167624282,0.16454085,95852.0,95823.0,0.10264569]
[1740167625082,0.16454085,95852.0,95824.0,0.156536]
[1740167625496,0.16454085,95852.0,95823.0,0.10264569]
[1740167626767,0.16454085,95852.0,95822.0,0.0017002]
[1740167626768,0.08346505,95845.0,95822.0,0.0017002]
[1740167626941,0.306538,95823.0,95822.0,0.0017002]
[1740167627150,0.42372454,95823.0,95822.0,0.0017002]
[1740167627605,0.29749716,95823.0,95822.0,0.0017002]
[1740167627832,0.19485147,95823.0,95822.0,0.0017002]
[1740167628036,0.14954085,95823.0,95822.0,0.0017002]
[1740167628235,0.15607776,95823.0,95822.0,0.0017002]
[1740167628445,0.17126429,95823.0,95822.0,0.00183029]
[1740167629034,0.00653691,95823.0,95822.0,0.00183029]
[1740167629240,0.3205,95832.0,95822.0,0.00183029]
[1740167629442,0.00790595,95844.0,95822.0,0.00183029]
[1740167630218,0.156497,95849.0,95822.0,0.00183029]
[1740167630427,0.15,95851.0,95822.0,0.00183029]
[1740167630614,0.01454085,95848.0,95822.0,0.00183029]
[1740167630815,0.17103785,95848.0,95822.0,0.00183029]
[1740167631019,0.01454085,95848.0,95822.0,0.00183029]
[1740167633919,0.01454085,95846.0,95822.0,0.00183029]
[1740167635383,0.01454085,95844.0,95822.0,0.00183029]
[1740167637463,0.01454085,95846.0,95823.0,0.10264569]
[1740167637709,0.09144565,95850.0,95826.0,0.208711]
[1740167637989,0.09144565,95850.0,95828.0,0.0495]
[1740167638223,0.09144565,95850.0,95832.0,0.208698]
[1740167638470,0.09144565,95850.0,95845.0,0.156501]
[1740167638686,0.09144565,95850.0,95845.0,0.25264569]
[1740167638889,0.09144565,95850.0,95845.0,0.25214569]
[1740167639128,0.09144565,95848.0,95845.0,0.25214569]
[1740167639369,0.09144565,95848.0,95847.0,0.156498]
[1740167639608,0.09144565,95848.0,95847.0,0.34024369]
[1740167640073,0.09144565,95848.0,95847.0,0.0811]
[1740167641517,0.01454085,95851.0,95834.0,0.0811]
[1740167642377,0.01454085,95849.0,95828.0,0.0495]
[1740167642504,0.01454085,95848.0,95828.0,0.0495]
[1740167642705,0.01454085,95849.0,95828.0,0.0495]
[1740167643142,0.156502,95846.0,95828.0,0.0495]
[1740167643314,0.01454085,95848.0,95828.0,0.0495]
[1740167643535,0.01454085,95851.0,95828.0,0.0495]
[1740167643937,0.16454085,95849.0,95823.0,0.0017012]
[1740167644160,0.01454085,95846.0,95823.0,0.0017012]
[1740167644375,0.01454085,95844.0,95823.0,0.0017012]
[1740167644586,0.3205,95846.0,95823.0,0.0017012]
[1740167644939,0.01454085,95845.0,95827.0,0.15653]
[1740167645144,0.01632456,95841.0,95823.0,0.0017012]
[1740167645343,0.01454085,95840.0,95823.0,0.1582392]
[1740167645544,0.01454085,95840.0,95823.0,0.0017012]
[1740167645812,0.01454085,95845.0,95823.0,0.0017012]
[1740167646741,0.01454085,95845.0,95823.0,0.1582382]
[1740167646853,0.00653435,95844.0,95823.0,0.0017012]
[1740167647049,0.15,95842.0,95823.0,0.0017012]
[1740167647277,0.01454085,95838.0,95823.0,0.0017012]
[1740167647703,0.01454085,95840.0,95823.0,0.0017012]
[1740167647951,0.156513,95839.0,95823.0,0.0017012]
[1740167648214,0.09718654,95841.0,95823.0,0.0017012]
[1740167648452,0.156511,95840.0,95823.0,0.0017012]
[1740167648622,0.00653435,95837.0,95823.0,0.0017012]
[1740167650094,0.01454085,95833.0,95823.0,0.0017012]
[1740167650545,0.01454085,95824.0,95823.0,0.0017012]
[1740167650742,0.11718654,95824.0,95823.0,0.0017012]
[1740167650990,0.26718654,95824.0,95823.0,0.0017012]
[1740167651590,0.6245518,95824.0,95823.0,0.0017012]
[1740167651708,0.306545,95819.0,95782.0,0.1308]
[1740167651908,0.306545,95819.0,95782.0,0.0488]
[1740167651909,1.28314594,95819.0,95782.0,0.0488]
[1740167652118,0.32110685,95806.0,95769.0,0.132501]
[1740167652327,0.74425254,95806.0,95773.0,0.15662]
[1740167652528,0.74425254,95806.0,95769.0,0.132501]
[1740167652529,0.74425254,95806.0,95770.0,0.208833]
[1740167652731,0.74425254,95806.0,95769.0,0.132501]
[1740167652929,0.75886706,95806.0,95771.0,0.156622]
[1740167653131,0.7758621,95806.0,95769.0,0.132501]
[1740167653382,0.81564116,95806.0,95769.0,0.132501]
[1740167653585,0.7758621,95806.0,95769.0,0.132501]
[1740167654207,0.15,95795.0,95769.0,0.12543789]
[1740167654445,0.11718654,95794.0,95769.0,0.12543789]
[1740167654645,0.01454085,95790.0,95769.0,0.12543789]
[1740167655232,0.01454085,95793.0,95769.0,0.12543789]
[1740167655378,0.01454085,95793.0,95769.0,0.12556801]
[1740167655778,0.01454085,95788.0,95769.0,0.12556801]
[1740167656048,0.00782295,95781.0,95769.0,0.00013012]
[1740167656377,0.306625,95770.0,95769.0,0.00013012]
[1740167656572,0.42381154,95770.0,95769.0,0.00013012]
[1740167657142,0.76431154,95770.0,95769.0,0.00013012]
[1740167657568,0.77084589,95770.0,95769.0,0.00013012]
[1740167657790,0.87349158,95770.0,95769.0,0.00013012]
[1740167658565,0.306648,95756.0,95755.0,0.001694]
[1740167658769,0.306648,95756.0,95755.0,0.00182426]
[1740167658770,1.8147323,95756.0,95755.0,0.00182426]
[1740167658913,2.18298543,95756.0,95755.0,0.00182426]
[1740167659114,2.18298543,95756.0,95737.0,0.0016948]
[1740167659483,2.18298543,95756.0,95726.0,0.0017002]
[1740167659484,0.32122485,95734.0,95726.0,0.0017002]
[1740167659689,1.11060714,95734.0,95726.0,0.0017002]
[1740167660091,0.81464594,95734.0,95726.0,0.0017002]
[1740167660308,0.80390855,95734.0,95726.0,0.0017002]
[1740167660513,0.3205,95734.0,95726.0,0.0017002]
[1740167661142,0.57982969,95734.0,95726.0,0.0017002]
[1740167661549,0.59466344,95734.0,95726.0,0.0017002]
[1740167661754,0.69442741,95734.0,95726.0,0.0017002]
[1740167661964,0.71442741,95734.0,95726.0,0.0017002]
[1740167662168,0.87896826,95734.0,95726.0,0.0017002]
[1740167662422,0.346695,95727.0,95726.0,0.0017002]
[1740167662627,0.46388154,95727.0,95726.0,0.0017002]
[1740167662843,0.81019164,95727.0,95726.0,0.0017002]
[1740167663717,0.79019164,95727.0,95726.0,0.0017002]
[1740167664013,0.79032147,95727.0,95726.0,0.0017002]
[1740167664566,0.80666726,95727.0,95726.0,0.0017002]
[1740167664771,0.92931295,95727.0,95726.0,0.0017002]
[1740167665016,0.94931295,95727.0,95726.0,0.0017002]
[1740167665224,0.93296716,95727.0,95726.0,0.0017002]
[1740167665400,0.91296716,95727.0,95726.0,0.0017002]
[1740167665628,0.81032147,95727.0,95726.0,0.0017002]
[1740167665957,0.81686546,95727.0,95726.0,0.0017002]
[1740167666617,0.82483934,95727.0,95726.0,0.0017002]
[1740167667159,1.14533934,95727.0,95726.0,0.0017002]
[1740167667502,1.24144104,95727.0,95726.0,0.0017002]
[1740167667942,0.98210035,95727.0,95719.0,1e-08]
[1740167668136,0.32124785,95720.0,95719.0,1e-08]
[1740167668352,1.4486227,95720.0,95719.0,1e-08]
[1740167668549,1.4486227,95720.0,95709.0,0.0017014]
[1740167668550,0.19672,95712.0,95711.0,0.00016001]
[1740167668757,0.156756,95690.0,95660.0,0.0494]
[1740167668958,2.07298679,95690.0,95660.0,0.0494]
[1740167669168,2.17563248,95690.0,95660.0,0.0494]
[1740167669644,2.19198499,95690.0,95660.0,0.0494]
[1740167670051,2.19198499,95690.0,95689.0,0.00213513]
[1740167670177,2.23977683,95690.0,95689.0,0.00043433]
[1740167671086,0.326782,95674.0,95646.0,0.0459]
[1740167671300,1.911689,95674.0,95673.0,0.00183107]
[1740167671505,1.931689,95674.0,95673.0,0.00183107]
[1740167671705,1.94804398,95674.0,95673.0,0.00183107]
[1740167672139,1.931689,95674.0,95673.0,0.00183107]
[1740167672951,1.8552034,95674.0,95673.0,0.00183107]
[1740167673142,1.8152034,95674.0,95673.0,0.00183107]
[1740167673347,1.8352034,95674.0,95673.0,0.00183107]
[1740167673905,0.156821,95650.0,95649.0,1e-08]
[1740167674126,0.74450754,95650.0,95649.0,1e-08]
[1740167675922,0.76890318,95650.0,95649.0,1e-08]
[1740167676093,0.75254368,95650.0,95649.0,1e-08]
[1740167676536,0.17139185,95632.0,95631.0,0.0002]
[1740167676737,0.01454085,95632.0,95631.0,0.0002]
[1740167677893,0.01454085,95632.0,95631.0,0.00033029]
[1740167678095,0.17139185,95632.0,95631.0,0.00033029]
[1740167679142,0.42403754,95632.0,95631.0,0.00033029]
[1740167679342,0.44039844,95632.0,95631.0,0.00033029]
[1740167679487,0.54304413,95632.0,95631.0,0.00033029]
[1740167680482,0.44039844,95632.0,95631.0,0.00033029]
[1740167680735,0.28354744,95632.0,95631.0,0.00033029]
[1740167680960,0.44039844,95632.0,95631.0,0.00033029]
[1740167682354,0.42403754,95632.0,95631.0,0.00033029]
[1740167682599,0.01454085,95611.0,95604.0,0.0786]
[1740167682836,0.15,95623.0,95604.0,0.0786]
[1740167683072,0.11718654,95622.0,95604.0,0.0786]
[1740167683303,0.156871,95620.0,95604.0,0.0786]
[1740167683554,0.31180969,95619.0,95604.0,0.0786]
[1740167683795,0.15688,95614.0,95604.0,0.0786]
[1740167684022,0.01636286,95617.0,95604.0,0.0786]
[1740167684251,0.00778262,95615.0,95604.0,0.0786]
[1740167684449,0.156884,95612.0,95604.0,0.0786]
[1740167684700,0.01454085,95611.0,95604.0,0.0786]
[1740167685497,0.00778262,95615.0,95604.0,0.0786]
[1740167685703,0.3205,95616.0,95604.0,0.0786]
[1740167686353,0.3205,95616.0,95609.0,0.156888]
[1740167686557,0.3205,95616.0,95604.0,0.0786]
[1740167687935,0.17141085,95620.0,95604.0,0.0786]
[1740167688136,0.01454085,95618.0,95604.0,0.0786]
[1740167688341,0.11718654,95618.0,95604.0,0.0786]
[1740167689572,0.01454085,95616.0,95604.0,0.0786]
[1740167689808,0.306913,95594.0,95593.0,0.0017002]
[1740167689993,0.306943,95576.0,95575.0,0.01296844]
[1740167690207,0.32148685,95574.0,95573.0,1e-08]
[1740167690725,0.61626624,95574.0,95573.0,1e-08]
[1740167690934,0.45932024,95574.0,95573.0,1e-08]
[1740167691071,0.61626624,95574.0,95573.0,1e-08]
[1740167691268,0.76626624,95574.0,95573.0,0.0004345]
[1740167691470,0.86891193,95574.0,95573.0,0.0004345]
[1740167691900,0.76626624,95574.0,95573.0,0.0004345]
[1740167692518,0.76626624,95574.0,95531.0,0.0494]
[1740167692519,0.02,95571.0,95531.0,0.0494]
[1740167692814,0.156973,95558.0,95551.0,0.00033038]
[1740167693021,0.10264569,95557.0,95551.0,0.00033038]
[1740167693226,0.15,95569.0,95551.0,0.00033038]
[1740167693442,0.10264569,95568.0,95551.0,0.00033038]
[1740167693645,0.01454085,95567.0,95551.0,0.00033038]
[1740167693895,0.13355989,95567.0,95551.0,0.00033038]
[1740167694315,0.11718654,95567.0,95551.0,0.00033038]
[1740167694516,0.13355944,95567.0,95551.0,0.00033038]
[1740167694753,0.0163729,95567.0,95551.0,0.00033038]
[1740167694943,0.0163729,95567.0,95553.0,0.1214]
[1740167695387,0.01454085,95564.0,95551.0,0.00033038]
[1740167695592,0.01454085,95560.0,95551.0,0.00033038]
[1740167695742,0.01454085,95558.0,95551.0,0.00033038]
[1740167696870,0.15,95565.0,95551.0,0.00033038]
[1740167696871,0.01423686,95576.0,95553.0,0.1261]
[1740167697053,0.156946,95574.0,95553.0,0.1261]
[1740167697251,0.10264569,95575.0,95553.0,0.1261]
[1740167697824,0.01454085,95574.0,95553.0,0.1261]
[1740167698999,0.02741235,95573.0,95553.0,0.1261]
[1740167699200,0.01454085,95574.0,95553.0,0.1261]
[1740167700399,0.156955,95569.0,95553.0,0.1261]
[1740167700601,0.01454085,95567.0,95553.0,0.1261]
[1740167700782,0.11718654,95567.0,95553.0,0.1261]
[1740167701199,0.10264569,95567.0,95553.0,0.1261]
[1740167701399,0.01454085,95566.0,95553.0,0.1261]
[1740167701602,0.17149985,95566.0,95553.0,0.1261]
[1740167701805,0.01454085,95566.0,95553.0,0.1261]
[1740167702012,0.01454085,95564.0,95553.0,0.1261]
[1740167702209,0.01454085,95564.0,95553.0,0.0499]
[1740167702419,0.01637168,95562.0,95553.0,0.0499]
[1740167702624,0.01637168,95562.0,95558.0,0.156972]
[1740167702852,0.3205,95583.0,95554.0,0.08371747]
[1740167703066,0.10264569,95580.0,95554.0,0.08371747]
[1740167703217,0.14437917,95580.0,95554.0,0.08371747]
[1740167703597,0.01454085,95579.0,95554.0,0.08371747]